[Event "Chinese League Division-A 2024"]
[Site "Fuling Chongqing"]
[Date "2024.07.06"]
[Round "9.8"]
[White "Chen, Zhi"]
[Black "Wu, Yixing"]
[Result "1-0"]
[ECO "A50"]
[WhiteElo "2164"]
[BlackElo "2326"]
[Annotator "RC"]
[PlyCount "89"]
[EventDate "2024.06.28"]
[EventType "team-tourn"]
[EventCountry "CHN"]
[SourceTitle "playchess.com"]
[Source "ChessBase"]
[SourceQuality "1"]
[TimeControl "40/5400+30:1800+30"]

1. d4 {[%emt 0:00:03]} Nf6 {[%emt 0:00:13]} 2. c4 {[%emt 0:00:07]} e6 {[%emt 0:00:06]} 3. Bf4 {[%emt 0:00:59]} b6 {[%emt 0:04:08]} 4. a3 {[%emt 0:01:03]} Bb7 {[%emt 0:00:54]} 5. Nc3 {[%emt 0:00:26]} d6 {[%emt 0:05:26]} 6. Nf3 {[%emt 0:12:32]} Be7 {[%emt 0:00:33]} 7. Qc2 {[%emt 0:02:44]} O-O {[%emt 0:18:40]} 8. e4 {[%emt 0:02:58]} c5 {[%emt 0:02:21]} 9. d5 {[%emt 0:01:11]} exd5 {[%emt 0:01:24]} 10. exd5 {[%emt 0:06:24]} Re8 {[%emt 0:05:07]} 11. O-O-O {[%emt 0:01:50]} a6 {[%emt 0:05:10]} 12. Bd3 {[%emt 0:02:15]} b5 {[%emt 0:06:09]} 13. cxb5 {[%emt 0:02:17]} Qa5 {[%emt 0:04:43]} 14. Rhe1 {[%emt 0:04:28]} Nbd7 {[%emt 0:02:59]} 15. Ng5 {[%emt 0:31:10]} g6 {[%emt 0:02:16]} 16. Nge4 {[%emt 0:11:52]} Qb6 {[%emt 0:17:33]} 17. bxa6 {[%emt 0:05:50]} Bxa6 {[%emt 0:00:43]} 18. Bxa6 {[%emt 0:00:14]} Qxa6 {[%emt 0:02:41]} 19. Nxf6+ {[%emt 0:00:57]} Bxf6 {[%emt 0:00:48]} 20. Ne4 {[%emt 0:08:42]} Rxe4 {[%emt 0:10:28]} 21. Rxe4 {[%emt 0:00:58]} Rb8 {[%emt 0:00:00]} 22. Qa4 {[%emt 0:01:25]} Qb7 {[%emt 0:02:51]} 23. b3 {[%emt 0:00:45]} c4 {[%emt 0:06:08]} 24. Rxc4 {[%emt 0:00:27]} Nb6 {[%emt 0:00:34]} 25. Qb4 {[%emt 0:00:49]} Nxc4 {[%emt 0:00:33]} 26. Qxb7 {[%emt 0:00:21]} Bb2+ {[%emt 0:00:25]} 27. Kc2 {[%emt 0:00:08]} Rxb7 {[%emt 0:00:04]} 28. bxc4 {[%emt 0:00:03]} Bxa3 {[%emt 0:00:04]} 29. Rb1 {[%emt 0:00:20]} Re7 {[%emt 0:01:04]} 30. Kd3 {[%emt 0:00:14]} Rd7 {[%emt 0:00:50]} 31. Be3 {[%emt 0:00:20]} Kf8 {[%emt 0:00:33]} 32. Rb3 {[%emt 0:00:38]} Bc5 {[%emt 0:00:04]} 33. Bxc5 {[%emt 0:00:23]} dxc5 {[%emt 0:00:03]} 34. Rb6 {[%emt 0:00:13]} Ra7 {[%emt 0:01:11]} 35. Rc6 {[%emt 0:00:25]} Ra2 {[%emt 0:00:41]} 36. Ke3 {[%emt 0:00:26]} Ra3+ {[%emt 0:00:19]} 37. Ke4 {[%emt 0:00:23]} Ra2 {[%emt 0:00:21]} 38. d6 {[%emt 0:02:05]} Ke8 {[%emt 0:00:39]} 39. Kd5 {[%emt 0:00:09]} Rxf2 {[%emt 0:00:28]} 40. Rc8+ {[%emt 0:00:00]} Kd7 {[%emt 0:00:00]} 41. Rc7+ {[%emt 0:00:27]} Kd8 {[%emt 0:00:08]} 42. Kc6 {[%emt 0:00:18]} Ra2 {[%emt 0:05:27]} 43. Rxf7 {[%emt 0:00:23]} Ra6+ {[%emt 0:02:07]} 44. Kxc5 {[%emt 0:00:14]} h5 {[%emt 0:01:18]} 45. Kd5 {[%emt 0:00:19]} 1-0

[Event "Chinese League Division-A 2024"]
[Site "Fuling Chongqing"]
[Date "2024.07.06"]
[Round "9.9"]
[White "Wang, Qinxuanyi"]
[Black "Zhu, Jiner"]
[Result "0-1"]
[ECO "D39"]
[WhiteElo "2149"]
[BlackElo "2476"]
[Annotator "TA"]
[PlyCount "58"]
[EventDate "2024.06.28"]
[EventType "team-tourn"]
[EventCountry "CHN"]
[SourceTitle "playchess.com"]
[Source "ChessBase"]
[SourceQuality "1"]
[TimeControl "40/5400+30:1800+30"]

{[%evp 11,58,11,42,18,23,20,16,30,27,21,29,-4,-32,-35,-6,-15,1,0,33,0,42,35,49,56,43,0,17,-103,-4,-212,-200,-254,-225,-255,-231,-522,-426,-457,-563,-573,-543,-503,-569,-818,-688,-655,-655,-1229,-1193]} 1. d4 {[%emt 0:00:04]} Nf6 {[%emt 0:00:07]} 2. c4 {[%emt 0:00:07]} e6 {[%emt 0:00:05]} 3. Nf3 {[%emt 0:00:06]} d5 {[%emt 0:00:08]} 4. Nc3 {[%emt 0:00:07]} Bb4 {[%emt 0:00:40]} 5. Bg5 {[%emt 0:00:27]} dxc4 {[%emt 0:00:08]} 6. e4 {[%emt 0:00:45][%cal Be2e4,Be4e5,Be5f6][%mdl 32]} b5 {[%emt 0:00:16]} 7. e5 {[%emt 0:01:34]} h6 $1 {[%emt 0:00:08]} 8. Bh4 {[%emt 0:02:16]} g5 $1 {[%emt 0:00:08]} 9. Nxg5 $1 {[%emt 0:00:05] The position is equal.} hxg5 {[%emt 0:00:04]} 10. Bxg5 {[%emt 0:00:05]} Nbd7 {[%emt 0:00:04][%cal Oh8g8]} 11. exf6 {[%emt 0:05:10]} (11. a3 $5 Bxc3+ 12. bxc3 $11) 11... Bb7 {[%emt 0:00:09][%cal Od7b6]} 12. Qc2 {[%emt 0:02:48]} Nb6 {[%emt 0:03:27][%mdl 1024] Black has compensation.} 13. O-O-O {[%emt 0:04:32]} Qd7 {[%emt 0:12:50]} 14. h4 {[%emt 0:03:40]} a5 {[%emt 0:01:23]} 15. Rh3 {[%emt 0:02:45]} Bd6 {[%emt 0:08:05]} 16. g4 {[%emt 0:10:30]} b4 {[%emt 0:06:39]} 17. Ne4 {[%emt 0:01:41] Hoping for Nc5.} Bd5 {[%emt 0:00:08]} 18. Bg2 {[%emt 0:03:38]} Qc6 {[%emt 0:16:25]} 19. Re3 {[%emt 0:06:14]} (19. Kd2 $11 {remains equal.}) 19... O-O-O {[%emt 0:02:24]} ({Better is} 19... a4 $1 $17 {[%cal Oc4c3] Threatens to win with ...c3!} 20. Rh3 c3) 20. f4 $2 {[%emt 0:09:45] [#] Now White is beyond hope.} (20. Kb1 $11 {and White is okay.}) 20... a4 $1 $19 {[%emt 0:03:18] White must now prevent ...b3.} 21. f5 {[%emt 0:02:57] [#]} (21. Nxd6+ Rxd6 22. Bf1 b3 23. axb3 axb3 $19) 21... b3 $1 {[%emt 0:00:21]} 22. axb3 {[%emt 0:09:22]} axb3 {[%emt 0:00:08]} 23. Qb1 {[%emt 0:00:02]} (23. Rxb3 cxb3 24. Qxc6 Bxc6 25. fxe6 fxe6 26. f7) 23... exf5 {[%emt 0:00:26] Black is clearly winning.} (23... Bb4 $2 24. fxe6 Bxe6 (24... Qxe6 $2 {too greedy.} 25. Nc5 $18) 25. Bf3 $19) 24. Nxd6+ {[%emt 0:00:58]} Rxd6 {[%emt 0:00:09]} 25. Qxf5+ {[%emt 0:01:01]} Kb7 {[%emt 0:00:07]} 26. Bf1 {[%emt 0:05:39]} Ra8 {[%emt 0:01:16]} 27. h5 {[%emt 0:11:53]} Be6 {[%emt 0:02:43]} 28. Qe4 {[%emt 0:02:39]} Nd5 {[%emt 0:00:28]} 29. Bg2 {[%emt 0:02:10]} Ra1+ {[%emt 0:00:18] Weighted Error Value: White=0.77/Black=0.18 (very precise) .  Loses game:     	White=1     	---        Mistake:       	White=2     	Black=1      Inaccurate:     	White=4     	Black=3      OK:         	White=7     	Black=4      Best:        	---       	Black=2      Strong:       	White=1     	Black=4} 0-1

[Event "Chinese League Division-A 2024"]
[Site "Fuling Chongqing"]
[Date "2024.07.06"]
[Round "9.10"]
[White "Bai, Xue"]
[Black "Liu, Manli"]
[Result "1/2-1/2"]
[ECO "B47"]
[WhiteElo "2114"]
[BlackElo "2056"]
[Annotator "NA RC"]
[PlyCount "161"]
[EventDate "2024.06.28"]
[EventType "team-tourn"]
[EventCountry "CHN"]
[SourceTitle "playchess.com"]
[Source "ChessBase"]
[SourceQuality "1"]
[TimeControl "40/5400+30:1800+30"]

1. e4 {[%emt 0:00:03]} c5 {[%emt 0:00:05]} 2. Nf3 {[%emt 0:00:04]} e6 {[%emt 0:00:06]} 3. d4 {[%emt 0:00:04]} cxd4 {[%emt 0:00:07]} 4. Nxd4 {[%emt 0:00:04]} Nc6 {[%emt 0:00:06]} 5. Nc3 {[%emt 0:00:05]} Qc7 {[%emt 0:00:05]} 6. g3 {[%emt 0:00:25]} a6 {[%emt 0:00:14]} 7. Bg2 {[%emt 0:00:10]} Nf6 {[%emt 0:00:08]} 8. O-O {[%emt 0:00:14]} Nxd4 {[%emt 0:00:08]} 9. Qxd4 {[%emt 0:00:06]} Bc5 {[%emt 0:00:14]} 10. Bf4 {[%emt 0:00:10]} d6 {[%emt 0:00:08]} 11. Qd3 {[%emt 0:00:30]} Ng4 {[%emt 0:00:39] B47: Sicilian: Taimanov: 5 Nc3 Qc7 6 f4, 6 g3 and 6 Be2.} 12. Na4 {[%emt 0:11:33]} e5 {[%emt 0:00:07]} 13. Nxc5 {[%emt 0:00:15]} exf4 {[%emt 0:00:18]} 14. Nb3 {[%emt 0:01:42]} Ne5 {[%emt 0:00:15]} 15. Qe2 {[%emt 0:05:30]} g5 {[%emt 0:05:33]} 16. Nd4 {[%emt 0:03:43]} h5 {[%emt 0:10:29]} 17. Qd2 {[%emt 0:08:36]} Rg8 {[%emt 0:26:26]} (17... fxg3 $1 $11 18. hxg3 (18. fxg3 h4 $11) 18... Rg8) 18. gxf4 {[%emt 0:29:49]} gxf4 {[%emt 0:00:44]} 19. Kh1 {[%emt 0:00:16]} Rxg2 {[%emt 0:34:31]} 20. Kxg2 {[%emt 0:00:33]} f3+ {[%emt 0:00:24]} 21. Kh1 {[%emt 0:00:46]} Bh3 {[%emt 0:01:05]} 22. Rg1 {[%emt 0:00:22]} O-O-O {[%emt 0:00:26]} 23. Rg3 {[%emt 0:03:48]} Bg2+ {[%emt 0:02:30]} 24. Rxg2 {[%emt 0:01:37]} fxg2+ {[%emt 0:00:07]} 25. Kxg2 {[%emt 0:00:10]} d5 {[%emt 0:02:01]} 26. exd5 {[%emt 0:08:09]} Qc4 {[%emt 0:02:49]} 27. Qc3 {[%emt 0:02:02]} Rxd5 {[%emt 0:02:41]} 28. Re1 {[%emt 0:03:45]} Qxc3 {[%emt 0:04:50]} 29. bxc3 {[%emt 0:00:05]} Ng6 {[%emt 0:02:04]} 30. Nb3 {[%emt 0:02:11]} Rg5+ {[%emt 0:00:55]} 31. Kf1 {[%emt 0:00:27]} h4 {[%emt 0:01:13]} 32. Re3 {[%emt 0:00:35]} f5 {[%emt 0:01:40]} (32... Kd7 $14) 33. Re8+ {[%emt 0:03:19]} Kd7 {[%emt 0:00:39]} 34. Rg8 {[%emt 0:00:33]} h3 {[%emt 0:00:34]} 35. Nd4 {[%emt 0:00:38]} Rg2 {[%emt 0:00:46]} 36. Rg7+ {[%emt 0:02:25]} Ke8 {[%emt 0:02:08]} 37. Nxf5 {[%emt 0:05:12]} Kf8 {[%emt 0:00:06]} 38. Rh7 {[%emt 0:00:53]} Rxh2 {[%emt 0:00:34]} 39. Ne3 {[%emt 0:03:24]} Rh1+ {[%emt 0:00:32]} 40. Ke2 {[%emt 0:00:00]} Kg8 {[%emt 0:00:00]} 41. Rh6 {[%emt 0:02:19]} Kf7 {[%emt 0:12:37]} 42. Kf3 {[%emt 0:01:18]} Kg7 {[%emt 0:03:54]} 43. Nf5+ {[%emt 0:00:08]} Kf7 {[%emt 0:00:11]} 44. Ng3 {[%emt 0:02:55]} Rc1 {[%emt 0:03:07]} 45. Rxh3 {[%emt 0:00:47]} Rxc2 {[%emt 0:00:20]} 46. Rh7+ {[%emt 0:00:07]} Ke6 {[%emt 0:00:15]} 47. Ne4 {[%emt 0:03:16]} Ne5+ {[%emt 0:00:44]} 48. Ke3 {[%emt 0:00:20]} Ng4+ {[%emt 0:01:06]} 49. Kd4 {[%emt 0:00:37]} Rxa2 {[%emt 0:00:28]} 50. f3 {[%emt 0:02:32]} Nf2 {[%emt 0:01:44]} 51. Nc5+ {[%emt 0:01:31]} Kf6 {[%emt 0:01:40]} 52. Rxb7 {[%emt 0:01:03]} a5 {[%emt 0:02:25]} 53. Ra7 {[%emt 0:05:03]} Nd1 {[%emt 0:02:36]} 54. Ne4+ {[%emt 0:00:54]} Ke6 {[%emt 0:00:06]} 55. Ra6+ {[%emt 0:00:12]} Kd7 {[%emt 0:00:47]} 56. f4 {[%emt 0:00:52]} Nf2 {[%emt 0:00:49]} 57. Nc5+ {[%emt 0:01:25]} Ke7 {[%emt 0:00:11]} 58. f5 {[%emt 0:00:30]} Rd2+ {[%emt 0:01:05]} 59. Ke5 {[%emt 0:04:17]} Re2+ {[%emt 0:01:23]} 60. Kf4 {[%emt 0:00:07]} Nh3+ {[%emt 0:01:28]} 61. Kg4 {[%emt 0:00:32]} Nf2+ {[%emt 0:00:16]} 62. Kg5 {[%emt 0:02:18]} Nh3+ {[%emt 0:00:15]} 63. Kh4 {[%emt 0:00:26]} Ng1 {[%emt 0:01:08]} 64. Rxa5 {[%emt 0:01:50]} Re3 {[%emt 0:01:58]} 65. Kg5 {[%emt 0:03:57]} Rg3+ {[%emt 0:00:16]} 66. Kf4 {[%emt 0:00:13]} Ne2+ {[%emt 0:01:07]} 67. Ke5 {[%emt 0:00:38]} Re3+ $11 {[%emt 0:00:26]} 68. Kd5 {[%emt 0:01:30]} Nxc3+ {[%emt 0:00:31]} 69. Kd4 {[%emt 0:00:14]} Rf3 {[%emt 0:00:26]} 70. Nd3 {[%emt 0:00:13]} Ne2+ {[%emt 0:01:16]} 71. Ke4 {[%emt 0:00:07]} Rh3 {[%emt 0:00:29]} 72. Ra7+ {[%emt 0:00:07]} Kf8 {[%emt 0:00:51]} 73. Ne5 {[%emt 0:02:24]} Ng3+ {[%emt 0:00:22]} 74. Kf4 {[%emt 0:00:11]} Nxf5 {[%emt 0:01:25]} 75. Kxf5 {[%emt 0:00:26]} Rh1 {[%emt 0:00:50]} 76. Kf6 {[%emt 0:00:46]} Rf1+ {[%emt 0:00:21]} 77. Ke6 {[%emt 0:00:08]} Re1 {[%emt 0:00:51]} 78. Rf7+ {[%emt 0:01:02]} Ke8 {[%emt 0:00:25]} 79. Rh7 {[%emt 0:00:42]} Kd8 {[%emt 0:00:34]} 80. Rg7 {[%emt 0:00:12]} Re2 {[%emt 0:00:33]} 81. Kd6 {[%emt 0:00:55]} 1/2-1/2

[Event "Chinese League Division-A 2024"]
[Site "Fuling Chongqing"]
[Date "2024.07.06"]
[Round "9.11"]
[White "Zeng, Chongsheng"]
[Black "Huang, Renjie"]
[Result "1/2-1/2"]
[ECO "B44"]
[WhiteElo "2578"]
[BlackElo "2480"]
[Annotator "TA"]
[PlyCount "64"]
[EventDate "2024.06.28"]
[EventType "team-tourn"]
[EventCountry "CHN"]
[SourceTitle "playchess.com"]
[Source "ChessBase"]
[SourceQuality "1"]
[TimeControl "40/5400+30:1800+30"]

{[%evp 10,64,12,10,15,7,11,7,27,10,18,0,14,0,0,0,9,14,2,14,4,16,16,43,33,43,33,18,27,26,15,12,14,10,7,7,19,0,0,0,0,0,0,0,0,0,0,0,0,0,0,0,0,0,0,0,0]} 1. e4 {[%emt 0:00:06]} c5 {[%emt 0:00:00]} 2. Nf3 {[%emt 0:01:35]} e6 {[%emt 0:00:41]} 3. c4 {[%emt 0:01:56]} Nc6 {[%emt 0:01:26]} 4. d4 {[%emt 0:00:54]} cxd4 {[%emt 0:00:07]} 5. Nxd4 {[%emt 0:00:05]} Nf6 {[%emt 0:00:03]} 6. Nc3 {[%emt 0:00:19]} Bc5 {[%emt 0:00:05]} 7. Nb3 {[%emt 0:21:14]} Bb4 {[%emt 0:00:05]} 8. Bd3 {[%emt 0:01:24]} Ne5 {[%emt 0:09:21]} 9. O-O {[%emt 0:03:23]} O-O {[%emt 0:00:34]} 10. Be2 {[%emt 0:12:51]} d5 {[%emt 0:03:43]} 11. exd5 {[%emt 0:06:22]} Bxc3 {[%emt 0:00:27]} 12. bxc3 {[%emt 0:00:06] Black should prevent f4.} exd5 {[%emt 0:00:02]} 13. cxd5 {[%emt 0:00:51]} Nxd5 {[%emt 0:05:37]} 14. Qd2 {[%emt 0:02:32]} Bg4 {[%emt 0:03:20]} 15. f3 {[%emt 0:00:02][%cal Bf2f3,Bf3f4,Bf4f5][%mdl 32]} Be6 {[%emt 0:00:38][%cal Bg4e6,Be6c8,Bc8d7][%mdl 32]} 16. f4 {[%emt 0:01:21]} Nc6 {[%emt 0:01:36]} 17. f5 {[%emt 0:02:57]} Bc8 {[%emt 0:00:20]} 18. Bf3 {[%emt 0:03:21]} Nf6 {[%emt 0:02:48]} 19. Ba3 {[%emt 0:04:08] A strong pair of Bishops.} Re8 {[%emt 0:02:08]} 20. Qxd8 {[%emt 0:06:26] The position is equal.} Nxd8 {[%emt 0:01:18]} 21. Nd4 {[%emt 0:08:36]} Bd7 {[%emt 0:00:40] Against Nb5} 22. c4 {[%emt 0:02:25]} a6 {[%emt 0:03:13]} 23. Rab1 {[%emt 0:03:28]} Rc8 {[%emt 0:00:26]} 24. Rfc1 {[%emt 0:01:27]} Nc6 {[%emt 0:00:46]} 25. Nxc6 {[%emt 0:01:33]} Bxc6 {[%emt 0:00:30]} 26. Bxc6 {[%emt 0:00:51]} bxc6 {[%emt 0:00:05]} 27. Re1 {[%emt 0:01:19]} h5 {[%emt 0:01:43]} 28. Be7 {[%emt 0:04:05]} Rb8 {[%emt 0:03:09]} 29. Bxf6 {[%emt 0:02:06] [#] aiming for Rxb8.} Rxe1+ {[%emt 0:00:19]} 30. Rxe1 {[%emt 0:00:01]} gxf6 {[%emt 0:00:04]} 31. Re3 {[%emt 0:01:28]} Rb4 {[%emt 0:01:04][%cal Oa6a5]} 32. Ra3 {[%emt 0:00:42]} Rxc4 {[%emt 0:01:05] Weighted Error Value: White=0.02 (flawless) /Black=0.02 (flawless) .  OK:         	White=18    	Black=14     Best:        	---       	Black=2} 1/2-1/2

[Event "Chinese League Division-A 2024"]
[Site "Fuling Chongqing"]
[Date "2024.07.06"]
[Round "9.12"]
[White "Xiao, Tong"]
[Black "Liu, Yan"]
[Result "1/2-1/2"]
[ECO "D60"]
[WhiteElo "2518"]
[BlackElo "2573"]
[Annotator "TA"]
[PlyCount "61"]
[EventDate "2024.06.28"]
[EventType "team-tourn"]
[EventCountry "CHN"]
[SourceTitle "playchess.com"]
[Source "ChessBase"]
[SourceQuality "1"]
[TimeControl "40/5400+30:1800+30"]

{[%evp 20,61,20,16,19,0,10,0,0,0,0,0,0,0,0,0,0,0,0,0,0,0,0,0,0,0,0,0,0,0,0,0,0,0,0,0,0,0,0,0,0,0,0,0]} 1. d4 {[%emt 0:00:02]} d5 {[%emt 0:01:53]} 2. c4 {[%emt 0:00:51]} c6 {[%emt 0:00:51]} 3. Nc3 {[%emt 0:01:37]} Nf6 {[%emt 0:01:43]} 4. Nf3 {[%emt 0:00:13]} e6 {[%emt 0:02:25]} 5. Bg5 {[%emt 0:01:59]} h6 {[%emt 0:02:13]} 6. Bh4 {[%emt 0:01:25]} Be7 {[%emt 0:01:35]} 7. e3 {[%emt 0:03:27]} O-O {[%emt 0:02:25]} 8. Bd3 {[%emt 0:01:34]} Nbd7 {[%emt 0:08:17]} 9. O-O {[%emt 0:04:13]} dxc4 {[%emt 0:04:28]} 10. Bxc4 {[%emt 0:00:06]} b5 {[%emt 0:00:17]} 11. Bd3 {[%emt 0:02:08] The position is equal.} Bb7 {[%emt 0:01:43]} 12. a3 {[%emt 0:06:14]} a5 {[%emt 0:05:03]} 13. Qc2 {[%emt 0:04:28]} b4 {[%emt 0:02:31]} 14. axb4 {[%emt 0:01:31]} axb4 {[%emt 0:00:08]} 15. Na4 {[%emt 0:00:20]} c5 {[%emt 0:03:29]} 16. Bxf6 {[%emt 0:02:50]} (16. Nxc5 Nxc5 17. Bxf6 (17. dxc5 Qd5 $11) 17... gxf6 $11) 16... Nxf6 {[%emt 0:01:22]} 17. Nxc5 {[%emt 0:01:06]} Bxf3 {[%emt 0:00:22]} 18. gxf3 {[%emt 0:00:07]} Rc8 $1 {[%emt 0:00:40]} 19. f4 {[%emt 0:01:33]} Nd7 {[%emt 0:01:30]} 20. Rfd1 {[%emt 0:01:58]} Nxc5 {[%emt 0:01:33]} 21. dxc5 {[%emt 0:00:27] [#] aiming for Bh7+.} Qc7 $1 {[%emt 0:00:11]} 22. Rac1 {[%emt 0:01:23]} Qxc5 {[%emt 0:00:28]} 23. Qxc5 {[%emt 0:00:55]} Rxc5 {[%emt 0:00:07]} 24. Rxc5 {[%emt 0:00:23]} Bxc5 $11 {[%emt 0:00:08][%mdl 4096] Endgame. KRB-KRB} 25. f5 {[%emt 0:00:35]} exf5 {[%emt 0:00:13]} 26. Bxf5 {[%emt 0:00:09]} g6 {[%emt 0:00:27]} 27. Be4 {[%emt 0:00:18]} Re8 {[%emt 0:00:24]} 28. Bd5 {[%emt 0:00:12]} Kg7 {[%emt 0:00:19]} 29. Kg2 {[%emt 0:01:07]} Rd8 {[%emt 0:00:13]} 30. Bb3 {[%emt 0:00:19]} Rxd1 {[%emt 0:00:06]} 31. Bxd1 {[%emt 0:00:39] An interesting draw.   Weighted Error Value: White=0.02 (flawless) /Black=0.00 (flawless) .  OK:         	White=8     	Black=12     Strong:       	---       	Black=2} 1/2-1/2

[Event "Chinese League Division-A 2024"]
[Site "Fuling Chongqing"]
[Date "2024.07.06"]
[Round "9.13"]
[White "Wang, Chen"]
[Black "Liu, Qingnan"]
[Result "1/2-1/2"]
[ECO "B51"]
[WhiteElo "2490"]
[BlackElo "2540"]
[Annotator "TA"]
[PlyCount "71"]
[EventDate "2024.06.28"]
[EventType "team-tourn"]
[EventCountry "CHN"]
[SourceTitle "playchess.com"]
[Source "ChessBase"]
[SourceQuality "1"]
[TimeControl "40/5400+30:1800+30"]

{[%evp 9,71,7,18,16,10,0,0,0,9,0,0,0,0,0,0,0,0,0,34,26,36,-11,0,-11,17,0,16,-20,-23,-25,-12,-49,-34,-38,0,-5,0,0,0,0,0,0,0,0,0,0,0,0,0,0,0,0,0,0,0,0,0,0,0,0,0,0,0,0]} 1. e4 {[%emt 0:00:03]} c5 {[%emt 0:00:05]} 2. Nf3 {[%emt 0:00:04]} d6 {[%emt 0:00:04]} 3. Bb5+ {[%emt 0:00:03]} Nd7 {[%emt 0:00:09]} 4. Ba4 {[%emt 0:00:04]} Ngf6 {[%emt 0:00:05]} 5. O-O {[%emt 0:00:58]} e6 {[%emt 0:00:04]} 6. Re1 {[%emt 0:01:41]} a6 {[%emt 0:00:11] [#] ...b5 would now be deadly.} 7. c4 {[%emt 0:00:07]} Be7 {[%emt 0:00:37]} 8. Nc3 {[%emt 0:01:29]} O-O {[%emt 0:00:07]} 9. d4 {[%emt 0:00:09]} cxd4 {[%emt 0:00:07]} 10. Nxd4 {[%emt 0:00:04]} Ne5 {[%emt 0:00:06]} 11. Qe2 {[%emt 0:01:51]} Qc7 {[%emt 0:00:05]} 12. Bb3 {[%emt 0:00:02]} Re8 {[%emt 0:00:09]} 13. Kh1 {[%emt 0:13:06]} b6 {[%emt 0:08:47]} 14. f4 {[%emt 0:05:00]} Ng6 {[%emt 0:00:28]} 15. Ba4 {[%emt 0:00:33]} (15. f5 $14 {feels stronger.} Ne5 16. Bf4) 15... Bd7 $11 {[%emt 0:04:56]} 16. f5 {[%emt 0:20:56]} Ne5 {[%emt 0:11:17]} (16... exf5 $5 17. Bxd7 Qxd7 $11) 17. Bxd7 {[%emt 0:02:57]} Qxd7 {[%emt 0:00:04]} 18. Bf4 {[%emt 0:01:04]} Rac8 {[%emt 0:01:10]} 19. c5 {[%emt 0:16:26]} dxc5 {[%emt 0:13:24]} 20. Bxe5 {[%emt 0:07:47] [#] Hoping for fxe6.} (20. Nxe6 $2 Nd3 21. e5 Nxe1 (21... fxe6 22. fxe6 Qd4 23. exf6 $17) 22. exf6 Bxf6 23. Rxe1 fxe6 24. fxe6 Qc6 $19) 20... cxd4 {[%emt 0:00:13]} 21. fxe6 {[%emt 0:01:01]} fxe6 {[%emt 0:00:19]} 22. Rad1 {[%emt 0:00:35] The position is equal.} Bc5 {[%emt 0:00:28]} 23. Bxd4 {[%emt 0:10:16]} Bxd4 {[%emt 0:00:30]} 24. e5 {[%emt 0:00:02]} Nd5 {[%emt 0:15:21]} ({Not} 24... Rxc3 $2 25. bxc3 Nd5 26. Rxd4 $18 (26. cxd4 Nc3 $16)) 25. Rxd4 {[%emt 0:00:02]} Nxc3 {[%emt 0:00:06]} 26. bxc3 {[%emt 0:00:05]} Qb7 {[%emt 0:00:13]} 27. c4 {[%emt 0:00:05]} Rc5 {[%emt 0:00:22]} 28. Rd6 {[%emt 0:01:23]} Qc7 {[%emt 0:09:19]} 29. h3 {[%emt 0:01:11]} Rxc4 {[%emt 0:03:27]} 30. Rxb6 {[%emt 0:00:02]} Qxb6 {[%emt 0:04:00]} 31. Qxc4 {[%emt 0:00:01] KQR-KQR} Rd8 {[%emt 0:00:57]} 32. Kh2 {[%emt 0:02:18]} h6 {[%emt 0:00:21]} 33. Rf1 {[%emt 0:00:57]} Rd4 {[%emt 0:07:16]} 34. Qc8+ {[%emt 0:00:06]} Rd8 {[%emt 0:00:10]} 35. Qc4 {[%emt 0:00:02]} Rd4 {[%emt 0:16:14]} 36. Qc8+ {[%emt 0:00:19] Weighted Error Value: White=0.06 (flawless) /Black=0.05 (flawless) .  Mistake:       	White=1     	---        Inaccurate:     	White=2     	Black=3      OK:         	White=13    	Black=13     Best:        	White=2     	Black=4} 1/2-1/2

[Event "Chinese League Division-A 2024"]
[Site "Fuling Chongqing"]
[Date "2024.07.06"]
[Round "9.14"]
[White "Hou, Yifan"]
[Black "Huang, Qian"]
[Result "1-0"]
[ECO "B33"]
[WhiteElo "2632"]
[BlackElo "2396"]
[Annotator "RC"]
[PlyCount "99"]
[EventDate "2024.06.28"]
[EventType "team-tourn"]
[EventCountry "CHN"]
[SourceTitle "playchess.com"]
[Source "ChessBase"]
[SourceQuality "1"]
[TimeControl "40/5400+30:1800+30"]

1. e4 {[%emt 0:00:05]} c5 {[%emt 0:02:53]} 2. Nf3 {[%emt 0:01:44]} Nc6 {[%emt 0:00:08]} 3. d4 {[%emt 0:00:33]} cxd4 {[%emt 0:00:10]} 4. Nxd4 {[%emt 0:00:05]} Nf6 {[%emt 0:00:48]} 5. Nc3 {[%emt 0:00:08]} e5 {[%emt 0:00:10]} 6. Ndb5 {[%emt 0:00:08]} d6 {[%emt 0:00:13]} 7. Nd5 {[%emt 0:01:48]} Nxd5 {[%emt 0:00:08]} 8. exd5 {[%emt 0:00:03]} Nb8 {[%emt 0:00:08]} 9. a4 {[%emt 0:00:08]} Be7 {[%emt 0:00:34]} 10. Bd2 {[%emt 0:00:44]} a6 {[%emt 0:04:36]} 11. Na3 {[%emt 0:00:07]} a5 {[%emt 0:00:12]} 12. Bb5+ {[%emt 0:01:05]} Nd7 {[%emt 0:12:12]} 13. O-O {[%emt 0:00:56]} O-O {[%emt 0:00:38]} 14. Nc4 {[%emt 0:00:06]} b6 {[%emt 0:13:53]} 15. Ra3 {[%emt 0:10:45]} Nc5 {[%emt 0:17:50]} 16. Be3 {[%emt 0:08:47]} Qc7 {[%emt 0:05:05]} 17. Re1 {[%emt 0:16:13]} f5 {[%emt 0:14:30]} 18. Bxc5 {[%emt 0:34:10]} bxc5 {[%emt 0:04:07]} 19. Rxe5 {[%emt 0:02:36]} dxe5 {[%emt 0:02:04]} 20. d6 {[%emt 0:00:04]} Bxd6 {[%emt 0:07:55]} 21. Qd5+ {[%emt 0:00:07]} Qf7 {[%emt 0:11:17]} 22. Qxa8 {[%emt 0:00:18]} Be6 {[%emt 0:00:43]} 23. Qc6 {[%emt 0:04:52]} Bb8 {[%emt 0:00:06]} 24. Nxa5 {[%emt 0:02:30]} Kh8 {[%emt 0:01:00]} 25. Qxc5 {[%emt 0:02:23]} e4 {[%emt 0:00:09]} 26. Nc6 {[%emt 0:00:42]} Rc8 {[%emt 0:01:11]} 27. Qd4 {[%emt 0:02:46]} Bc7 {[%emt 0:00:37]} 28. a5 {[%emt 0:00:37]} Qh5 {[%emt 0:00:35]} 29. h3 {[%emt 0:03:08]} Qg5 {[%emt 0:00:29]} 30. a6 {[%emt 0:03:02]} f4 {[%emt 0:00:29]} 31. Qxe4 {[%emt 0:02:02]} Bd5 {[%emt 0:00:11]} 32. h4 {[%emt 0:00:04]} Qh5 {[%emt 0:00:03]} 33. Qd4 {[%emt 0:01:34]} Ra8 {[%emt 0:01:23]} 34. c4 {[%emt 0:02:04]} Bxg2 {[%emt 0:00:32]} 35. Kxg2 {[%emt 0:00:05]} Qxh4 {[%emt 0:00:29]} 36. Qd7 {[%emt 0:01:22]} Qg5+ {[%emt 0:00:30]} 37. Kf1 {[%emt 0:00:26]} f3 {[%emt 0:00:17]} 38. Rxf3 {[%emt 0:00:10]} Qc1+ {[%emt 0:00:02]} 39. Kg2 {[%emt 0:00:06]} Qg5+ {[%emt 0:00:04]} 40. Kf1 {[%emt 0:00:00]} Qc1+ {[%emt 0:00:00]} 41. Kg2 {[%emt 0:06:52]} Qg5+ {[%emt 0:00:22]} 42. Rg3 {[%emt 0:00:04]} Bxg3 {[%emt 0:00:05]} 43. fxg3 {[%emt 0:00:03]} Rf8 {[%emt 0:02:33]} 44. Qd3 {[%emt 0:01:02]} h5 {[%emt 0:02:33]} 45. Nd4 {[%emt 0:08:37]} h4 {[%emt 0:00:15]} 46. Ne2 {[%emt 0:01:30]} Qf6 {[%emt 0:13:32]} 47. Nf4 {[%emt 0:01:48]} hxg3 {[%emt 0:01:59]} 48. Qxg3 {[%emt 0:02:36]} Qxb2+ {[%emt 0:00:03]} 49. Qf2 {[%emt 0:07:44]} Qf6 {[%emt 0:00:56]} 50. Qh4+ {[%emt 0:00:23]} 1-0